[Event "Khanty-Mansiysk FIDE GP (Women)"]
[Site "Khanty-Mansiysk"]
[Date "2014.04.10"]
[Round "2"]
[White "Lagno, Kateryna"]
[Black "Girya, Olga"]
[Result "1-0"]
[ECO "B49"]
[WhiteElo "2543"]
[BlackElo "2450"]
[Annotator "ChessBase Website"]
[PlyCount "81"]
[EventDate "2014.04.09"]
[EventType "tourn"]
[EventRounds "11"]
[EventCountry "RUS"]
[EventCategory "10"]
[SourceTitle "CBM 160"]
[Source "ChessBase"]
[SourceDate "2014.05.15"]
[SourceVersion "1"]
[SourceVersionDate "2014.05.15"]
[SourceQuality "1"]
[TimeControl "40/5400+30:1800+30"]
[WhiteClock "1:30:00"]
[BlackClock "1:30:00"]

1. e4 {[%emt 0:00:00]} c5 {[%emt 0:00:00]} 2. Nf3 {[%emt 0:00:15]} e6 {[%emt 0:
00:00]} 3. d4 {[%emt 0:00:11]} cxd4 {[%emt 0:00:00]} 4. Nxd4 {[%emt 0:00:03]}
Nc6 {[%emt 0:00:01]} 5. Nc3 {[%emt 0:00:12]} Qc7 {[%emt 0:00:06]} 6. Be3 {
[%emt 0:00:37]} a6 {[%emt 0:00:15]} 7. Be2 {[%emt 0:00:45]} b5 {[%emt 0:00:53]
Girya used a quick b5 in the Paulsen set-up, which has been tried at the top
level but only in blitz. The experiment was not completely unsuccessful as
Black obtained a playable position from the opening, but from that moment all
it was the Ukrainian that swarmed the board. deflection:} 8. Nxc6 {[%emt 0:01:
10]} Qxc6 {[%emt 0:00:14]} 9. e5 {[%emt 0:04:44]} (9. Bf3 Bb7 10. O-O Qc7 11.
Qd2 Rc8 12. Rad1 d6 13. a3 Nf6 14. Bf4 Nd7 15. Bxd6 Bxd6 16. Qxd6 Qxd6 17. Rxd6
Ke7 18. Rfd1 Ne5 19. Be2 g5 20. f3 Rc7 21. Kf2 Rhc8 22. R6d2 h5 23. Rc1 h4 24.
Nd1 g4 25. Ne3 Rg8 26. c4 g3+ 27. hxg3 hxg3+ 28. Ke1 Ng6 29. Rdc2 bxc4 30. Rxc4
Rd7 31. Rd1 Nf4 32. Rxd7+ Kxd7 33. e5 Nd5 34. Nxd5 Bxd5 35. Rf4 Ke7 36. Rh4 Rg5
37. f4 Rg8 {0-1 (37) Karjakin,S (2756)-Wang,Y (2723) Beijing 2013}) 9... Qc7 {
[%emt 0:03:37]} 10. Bf3 {[%emt 0:16:08]} Bb7 {[%emt 0:00:49]} 11. O-O {[%emt 0:
10:51]} Rc8 {[%emt 0:00:36]} 12. Bxb7 {[%emt 0:02:00]} Qxb7 {[%emt 0:00:04]}
13. Qd3 {[%emt 0:01:43]} f5 {[%emt 0:04:39]} 14. a4 $146 {[%emt 0:11:31]} (14.
exf6 Nxf6 15. Bd4 Be7 16. Bxf6 gxf6 17. Rfe1 Rg8 18. g3 f5 19. Rad1 Rc4 20. Qe2
Rg6 21. Rd3 Qc6 22. Nd1 f4 23. c3 fxg3 24. hxg3 Rf4 25. Qh5 Rf7 26. Ree3 Rgf6
27. Re5 Qc4 28. Rd2 Qxa2 29. Rg5 Bf8 30. Rg8 Rf5 31. Qh1 Rd5 32. Rxd5 Qxd5 33.
Qxd5 exd5 34. Ne3 d4 35. cxd4 Ke7 36. Rg5 Kd6 37. Rc5 Ke6 38. Rc8 Bg7 39. d5+
Kd6 40. b3 Bd4 41. Ra8 Bxe3 42. fxe3 Kxd5 43. Rxa6 Kc5 {Dragun,K (2520)
-Zhigalko,A (2603) Legnica 2013 0-1 (69)}) 14... b4 {[%emt 0:00:43]} 15. Ne2 {
[%emt 0:08:57]} Ne7 {[%emt 0:07:56]} 16. c4 {[%emt 0:02:08]} Nc6 {[%emt 0:23:
50]} 17. f4 {[%emt 0:00:21]} b3 {[%emt 0:02:27]} 18. a5 {[%emt 0:04:11]} Nb4 {
[%emt 0:06:16]} 19. Qxb3 {[%emt 0:02:04]} Qe4 {[%emt 0:00:31]} 20. Nd4 {
[%emt 0:12:44]} Nd3 {[%emt 0:17:52]} 21. Rf3 {[%emt 0:00:04]} g5 {[%emt 0:02:
01]} 22. Rd1 {[%emt 0:03:06]} g4 {[%emt 0:03:38]} 23. Rxd3 {[%emt 0:00:13] An
interesting exchange sacrifice gave Lagno the initiative as compensation, and
Girya's response was less than precise. A series of quick punches gave Lagno a
winning endgame that she finished off with the following nice} gxf3 {[%emt 0:
00:09]} 24. gxf3 {[%emt 0:01:25]} Qa8 {[%emt 0:00:53]} 25. Qa4 {[%emt 0:00:05]}
Bc5 {[%emt 0:03:12]} 26. Nxf5 {[%emt 0:04:56]} Rg8+ {[%emt 0:16:24]} 27. Kf2 {
[%emt 0:00:29]} Qc6 {[%emt 0:01:44]} 28. Qxc6 {[%emt 0:00:40]} Rxc6 {[%emt 0:
00:06]} 29. Bxc5 {[%emt 0:01:27]} exf5 {[%emt 0:00:10]} 30. b4 {[%emt 0:00:11]}
Rh6 {[%emt 0:01:26]} 31. b5 {[%emt 0:01:29]} Rxh2+ {[%emt 0:00:07]} 32. Ke3 {
[%emt 0:00:01]} Ra2 {[%emt 0:02:25]} 33. b6 {[%emt 0:05:08]} Rb2 {[%emt 0:01:
02]} 34. Ba3 {[%emt 0:00:28]} Rb1 {[%emt 0:00:38]} 35. e6 {[%emt 0:00:03]} Rg7
{[%emt 0:01:51]} 36. Bf8 {[%emt 0:01:33]} Kxf8 {[%emt 0:00:47]} 37. exd7 {
[%emt 0:00:04]} Re7+ {[%emt 0:00:28]} 38. Kd2 {[%emt 0:00:17]} Rxd7 {[%emt 0:
00:37]} 39. Rxd7 {[%emt 0:00:05]} h5 {[%emt 0:00:21]} 40. b7 {[%emt 0:00:00]}
Ke8 {[%emt 0:00:00]} 41. Rc7 {[%emt 0:00:30]} 1-0